{"text_format":"1","workbook":"xlsx","n_sheets":3,"sheets":["QUOTATION","BoQ 02 ( Financial )","BoQ 02 ( Technical )"],"not_rendered":{"charts":0,"images":5,"macros":1,"external_links":1,"defined_names":13,"comments":0,"pivot_tables":0},"unopened":[],"bounds":{"document_bytes":16777216,"sheet_cells":100000,"rows_first":2000,"rows_last":500,"rows_between":2000,"halvings":0,"cell_chars":16384,"cell_head_chars":4096},"cells_cut":0,"cells_raw":0,"read":"whole","date_system":"1900"}

{"sheet":"QUOTATION","index":0,"n_rows":29,"n_cols":8,"rows_kept":29,"cut":false,"hidden":false,"merged":[[28,7,29,7],[18,2,18,5],[16,2,16,3],[17,2,17,3],[1,1,1,7],[4,4,4,6],[5,4,5,6],[7,2,8,4],[7,7,8,7],[9,6,9,7],[22,2,22,3],[23,2,23,3],[24,2,24,3],[25,2,25,3],[28,2,29,3]]}
[null,"QUOTATION REQUEST | TEKLİF TALEBİ - AL AMEEN FOR HUMANITARIAN SUPPORT "]
[null,"طلب عرض سعر"]
[]
[]
[null,null,"PR date | SAT tarihi:",null,"2025-03-28",null,null,"تاريخ طلب الشراء:"]
[null,null,"\nReference of the PR | SAT'nin referansı:",null,"PR/AL165H25 V2/WHO2.01-2.02-2.04-2.05/GZT/PRO-HE/28-3-2025/",null,null,"الرقم المرجعي لطلب الشراء:"]
[]
[null,null,"Quotation valid* from ....../......./........... until ....../......./...........\nTeklif geçerli*  tarihinden ....../......./........... tarihine kadar ....../....../…….... ",null,null,null,null,"صلاحية عرض السعر* من ....../......./........... إلى ....../......./..........."]
[]
[null,null,"*Please note that quotation cannot be valid for less than 3 days or more than 90 days.  | Teklifin 3 günden az veya 90 günden fazla geçerli olamayacağını lütfen unutmayın.",null,null,null," ملاحظة : عرض السعر يكون غير صالح لمدة أقل من ثلاثة أيام أو أكثر من 90 يوم."]
[null,null,"Company | Şirket:",null,null,null,null,"الشركة/المؤسسة:"]
[null,null,"Representative | Temsilci:",null,null,null,null,"اسم الشخص المسؤول:"]
[null,null,"Tel:",null,null,null,null,"الهاتف:"]
[null,null,"Email | E-posta:",null,null,null,null,"البريد الالكتروني:"]
[null,null,"Address | Adres:",null,null,null,null,"العنوان:"]
[]
[null,null,"Items |\nالعناصر",null,"Unit | Birim\nالواحدة","Quantity | Miktar\nالكمية",{"$f":"\"Unit Price in \"&CurrnecyT&\" includes taxes and delivery\"&\" | Birim Fiyata vergiler ve teslimat dahildir\"&\"\n| السعر الإفرادي متضمناً الضريبة \"","v":"Unit Price in EURO includes taxes and delivery | Birim Fiyata vergiler ve teslimat dahildir\n| السعر الإفرادي متضمناً الضريبة "},{"$f":"\"Total Price in \"&CurrnecyT&\" includes taxes and delivery \"&\" | Toplam Fiyata vergiler ve teslimat dahildir\"&\n\"| السعر الإجمالي متضمناً الضريبة والتوصيل\"","v":"Total Price in EURO includes taxes and delivery  | Toplam Fiyata vergiler ve teslimat dahildir| السعر الإجمالي متضمناً الضريبة والتوصيل"}]
[null,1,"Medical Consumables  (BoQ 02)",null,{"$f":"'[1]PR FORM'!C16","v":"Lumpsum"},{"$f":"'[1]PR FORM'!D16*'[1]PR FORM'!E16","v":1}]
[null,null,"Total | Toplam |  المجموع"]
[]
[null," Comments/Technical specifications | Yorumlar/Teknik özellikler | التعليقات/المواصفات التقنية"]
[]
[null,null,"Total price (in letter) | Toplam fiyat (mektupla)",null,null,null,null," السعر الكلي ( كتابةً) :"]
[null,null,"Available now | Şu an müsait:",null,null,null,null," كل العناصر متوفرة:"]
[null,null,"The requested quantity is entirely available | İstenen miktar tamamen mevcuttur",null,null,null,null," الكمية المطلوبة متوفرة :"]
[null,null,"Delivery date | Teslim tarihi",null,null,null,null," تاريخ التسليم:"]
[]
[]
[null,null,"\nSupplier's signature and stamp | Tedarikçinin imzası ve kaşesi: ",null,null,null,null,"ختم وتوقيع المورد : "]

{"sheet":"BoQ 02 ( Financial )","index":1,"n_rows":37,"n_cols":7,"rows_kept":37,"cut":false,"hidden":false,"merged":[[0,3,0,6]]}
["BoQ 02",null,"PR/AL165H25 V2/WHO2.01-2.02-2.04-2.05/GZT/PRO-HE/28-3-2025/","Financial"]
["SN","Category\nKategori","Technical Specifications\nTeknik Özellikler","Unit\nBirim","Quantity\nMiktar ","UNIT PRICE","TOTAL PRICE"]
[{"$f":"IF(ISBLANK(B3),\"\",SUBTOTAL(103,$B$3:B3))","v":1},"Medical Consumables","Clamp.Umbilical 5.8cm sterile disposable","piece",300,null,{"$f":"Table145[[#This Row],[Quantity\nMiktar ]]*Table145[[#This Row],[UNIT PRICE]]","v":0}]
[{"$f":"IF(ISBLANK(B4),\"\",SUBTOTAL(103,$B$3:B4))","v":2},"Medical Consumables","Elastic Gauze bandages 10cm x 5m non-sterile","Piece",200,null,{"$f":"Table145[[#This Row],[Quantity\nMiktar ]]*Table145[[#This Row],[UNIT PRICE]]","v":0}]
[{"$f":"IF(ISBLANK(B5),\"\",SUBTOTAL(103,$B$3:B5))","v":3},"Medical Consumables","Elastic Gauze bandages 5cm x 5m non-sterile","Piece",200,null,{"$f":"Table145[[#This Row],[Quantity\nMiktar ]]*Table145[[#This Row],[UNIT PRICE]]","v":0}]
[{"$f":"IF(ISBLANK(B6),\"\",SUBTOTAL(103,$B$3:B6))","v":4},"Medical Consumables","Gauze pads, N17, 10X10 cm, 4 ply, sterile","piece",5000,null,{"$f":"Table145[[#This Row],[Quantity\nMiktar ]]*Table145[[#This Row],[UNIT PRICE]]","v":0}]
[{"$f":"IF(ISBLANK(B7),\"\",SUBTOTAL(103,$B$3:B7))","v":5},"Medical Consumables","gloves, examination, latex, size large , powder free, non-sterile, disposable ,box 100 pcs.","Box",30,null,{"$f":"Table145[[#This Row],[Quantity\nMiktar ]]*Table145[[#This Row],[UNIT PRICE]]","v":0}]
[{"$f":"IF(ISBLANK(B8),\"\",SUBTOTAL(103,$B$3:B8))","v":6},"Medical Consumables","gloves, examination, latex, size medium , powder free, non-sterile, disposable ,box 100 pcs.","Box",30,null,{"$f":"Table145[[#This Row],[Quantity\nMiktar ]]*Table145[[#This Row],[UNIT PRICE]]","v":0}]
[{"$f":"IF(ISBLANK(B9),\"\",SUBTOTAL(103,$B$3:B9))","v":7},"Medical Consumables","gloves, examination, latex, size X large, powder free, non-sterile, disposable ,box 100 pcs.","Box",12,null,{"$f":"Table145[[#This Row],[Quantity\nMiktar ]]*Table145[[#This Row],[UNIT PRICE]]","v":0}]
[{"$f":"IF(ISBLANK(B10),\"\",SUBTOTAL(103,$B$3:B10))","v":8},"Medical Consumables","I.v. placement unit 20G catheter (pink) + injection port and wings","piece",500,null,{"$f":"Table145[[#This Row],[Quantity\nMiktar ]]*Table145[[#This Row],[UNIT PRICE]]","v":0}]
[{"$f":"IF(ISBLANK(B11),\"\",SUBTOTAL(103,$B$3:B11))","v":9},"Medical Consumables","I.v. placement unit 22G catheter (blue) + injection port and wings","piece",500,null,{"$f":"Table145[[#This Row],[Quantity\nMiktar ]]*Table145[[#This Row],[UNIT PRICE]]","v":0}]
[{"$f":"IF(ISBLANK(B12),\"\",SUBTOTAL(103,$B$3:B12))","v":10},"Medical Consumables","I.v. placement unit 24G catheter (Yellow) + injection port and wings","piece",500,null,{"$f":"Table145[[#This Row],[Quantity\nMiktar ]]*Table145[[#This Row],[UNIT PRICE]]","v":0}]
[{"$f":"IF(ISBLANK(B13),\"\",SUBTOTAL(103,$B$3:B13))","v":11},"Medical Consumables","Iv infusion Set: -20 drops/ml -One (1) Y-injection site 6\" from distal end","Piece",600,null,{"$f":"Table145[[#This Row],[Quantity\nMiktar ]]*Table145[[#This Row],[UNIT PRICE]]","v":0}]
[{"$f":"IF(ISBLANK(B14),\"\",SUBTOTAL(103,$B$3:B14))","v":12},"Medical Consumables","Mask, oxygen, simple, with tubing, Pediatric","piece",50,null,{"$f":"Table145[[#This Row],[Quantity\nMiktar ]]*Table145[[#This Row],[UNIT PRICE]]","v":0}]
[{"$f":"IF(ISBLANK(B15),\"\",SUBTOTAL(103,$B$3:B15))","v":13},"Medical Consumables","Non-sterile Guaze 10 cm x 10 cm,100 % Cotton","KG",24,null,{"$f":"Table145[[#This Row],[Quantity\nMiktar ]]*Table145[[#This Row],[UNIT PRICE]]","v":0}]
[{"$f":"IF(ISBLANK(B16),\"\",SUBTOTAL(103,$B$3:B16))","v":14},"Medical Consumables","Nylon Glove, Examination for single use,box 100 pcs.","Box",60,null,{"$f":"Table145[[#This Row],[Quantity\nMiktar ]]*Table145[[#This Row],[UNIT PRICE]]","v":0}]
[{"$f":"IF(ISBLANK(B17),\"\",SUBTOTAL(103,$B$3:B17))","v":15},"Medical Consumables","plaster mefix  5 cm*10m","piece",50,null,{"$f":"Table145[[#This Row],[Quantity\nMiktar ]]*Table145[[#This Row],[UNIT PRICE]]","v":0}]
[{"$f":"IF(ISBLANK(B18),\"\",SUBTOTAL(103,$B$3:B18))","v":16},"Medical Consumables","plaster mefix 10 cm*10m","piece",50,null,{"$f":"Table145[[#This Row],[Quantity\nMiktar ]]*Table145[[#This Row],[UNIT PRICE]]","v":0}]
[{"$f":"IF(ISBLANK(B19),\"\",SUBTOTAL(103,$B$3:B19))","v":17},"Medical Consumables","Plaster, adhesive, Zinc oxide  5cm*5M","piece",100,null,{"$f":"Table145[[#This Row],[Quantity\nMiktar ]]*Table145[[#This Row],[UNIT PRICE]]","v":0}]
[{"$f":"IF(ISBLANK(B20),\"\",SUBTOTAL(103,$B$3:B20))","v":18},"Medical Consumables","povidone iodine 10% topical solution 1000 ml bottle","Bottle",60,null,{"$f":"Table145[[#This Row],[Quantity\nMiktar ]]*Table145[[#This Row],[UNIT PRICE]]","v":0}]
[{"$f":"IF(ISBLANK(B21),\"\",SUBTOTAL(103,$B$3:B21))","v":19},"Medical Consumables","Surgical linens, waterproof, sterile ( 100 cm * 100 cm )","piece",120,null,{"$f":"Table145[[#This Row],[Quantity\nMiktar ]]*Table145[[#This Row],[UNIT PRICE]]","v":0}]
[{"$f":"IF(ISBLANK(B22),\"\",SUBTOTAL(103,$B$3:B22))","v":20},"Medical Consumables","suture polyglycolic Acid  1    round/ Absorbable  ","piece",96,null,{"$f":"Table145[[#This Row],[Quantity\nMiktar ]]*Table145[[#This Row],[UNIT PRICE]]","v":0}]
[{"$f":"IF(ISBLANK(B23),\"\",SUBTOTAL(103,$B$3:B23))","v":21},"Medical Consumables","suture polyglycolic Acid  2/0    round/ Absorbable  ","piece",96,null,{"$f":"Table145[[#This Row],[Quantity\nMiktar ]]*Table145[[#This Row],[UNIT PRICE]]","v":0}]
[{"$f":"IF(ISBLANK(B24),\"\",SUBTOTAL(103,$B$3:B24))","v":22},"Medical Consumables","Syringe, hypodermic, Luer, 2-part, 10 ml, sterile, disposable with needle","piece",500,null,{"$f":"Table145[[#This Row],[Quantity\nMiktar ]]*Table145[[#This Row],[UNIT PRICE]]","v":0}]
[{"$f":"IF(ISBLANK(B25),\"\",SUBTOTAL(103,$B$3:B25))","v":23},"Medical Consumables","Syringe, hypodermic, Luer, 2-part, 3 ml, sterile, disposable  with needle","piece",5000,null,{"$f":"Table145[[#This Row],[Quantity\nMiktar ]]*Table145[[#This Row],[UNIT PRICE]]","v":0}]
[{"$f":"IF(ISBLANK(B26),\"\",SUBTOTAL(103,$B$3:B26))","v":24},"Medical Consumables","Syringe, hypodermic, Luer, 2-part, 5 ml, sterile, disposable with needle","piece",5000,null,{"$f":"Table145[[#This Row],[Quantity\nMiktar ]]*Table145[[#This Row],[UNIT PRICE]]","v":0}]
[{"$f":"IF(ISBLANK(B27),\"\",SUBTOTAL(103,$B$3:B27))","v":25},"Medical Consumables","Syringe, insulin, sterile, 100 IU/ml, with 27G needle","piece",1000,null,{"$f":"Table145[[#This Row],[Quantity\nMiktar ]]*Table145[[#This Row],[UNIT PRICE]]","v":0}]
[{"$f":"IF(ISBLANK(B28),\"\",SUBTOTAL(103,$B$3:B28))","v":26},"Medical Consumables","Urine clollection bag, infants ","piece",100,null,{"$f":"Table145[[#This Row],[Quantity\nMiktar ]]*Table145[[#This Row],[UNIT PRICE]]","v":0}]
[{"$f":"IF(ISBLANK(B29),\"\",SUBTOTAL(103,$B$3:B29))","v":27},"Medical Consumables","Urine collecting bag 2000ml, sterile, with non-return valve and tap","piece",200,null,{"$f":"Table145[[#This Row],[Quantity\nMiktar ]]*Table145[[#This Row],[UNIT PRICE]]","v":0}]
[{"$f":"IF(ISBLANK(B30),\"\",SUBTOTAL(103,$B$3:B30))","v":28},"Medical Consumables","Ultrasound gel 1000 ml , bottle ","Bottle",20,null,{"$f":"Table145[[#This Row],[Quantity\nMiktar ]]*Table145[[#This Row],[UNIT PRICE]]","v":0}]
[{"$f":"IF(ISBLANK(B31),\"\",SUBTOTAL(103,$B$3:B31))","v":29},"Medical Consumables","Pediatric nebulizer mask","Piece",300,null,{"$f":"Table145[[#This Row],[Quantity\nMiktar ]]*Table145[[#This Row],[UNIT PRICE]]","v":0}]
[{"$f":"IF(ISBLANK(B32),\"\",SUBTOTAL(103,$B$3:B32))","v":30},"Medical Consumables","Activated Glutaraldehyde (Cidex) 2.45% bottle of 5 liters","Piece",10,null,{"$f":"Table145[[#This Row],[Quantity\nMiktar ]]*Table145[[#This Row],[UNIT PRICE]]","v":0}]
[{"$f":"IF(ISBLANK(B33),\"\",SUBTOTAL(103,$B$3:B33))","v":31},"Medical Consumables","povidone iodine 10% topical solution 1000 ml bottle","Bottle",40,null,{"$f":"Table145[[#This Row],[Quantity\nMiktar ]]*Table145[[#This Row],[UNIT PRICE]]","v":0}]
[{"$f":"IF(ISBLANK(B34),\"\",SUBTOTAL(103,$B$3:B34))","v":32},"Medical Consumables","Wooden Tongue Depressors ,box 100 pcs.","Box",100,null,{"$f":"Table145[[#This Row],[Quantity\nMiktar ]]*Table145[[#This Row],[UNIT PRICE]]","v":0}]
[null,null,"Total",null,null,null,{"$f":"SUBTOTAL(109,Table145[TOTAL PRICE])","v":0}]
["Supplier Name | اسم المزود"]
["Supplier & Signature | توقيع وختم المزود"]

{"sheet":"BoQ 02 ( Technical )","index":2,"n_rows":36,"n_cols":10,"rows_kept":36,"cut":false,"hidden":false,"merged":[[0,3,0,9]]}
["BoQ 02",null,"PR/AL165H25 V2/WHO2.01-2.02-2.04-2.05/GZT/PRO-HE/28-3-2025/","Technical"]
["SN","Category\nKategori","Technical Specifications\nTeknik Özellikler","Unit\nBirim","Trade Name\nTicari Adı","Expiry Date\nSon Kullanma Tarihi","Country of Origin\nMenşei Ülke","Package & Form\nPaket ve Form","Dose\nDoz","Company Or Agent Name\nŞirket veya Temsilci Adı "]
[{"$f":"IF(ISBLANK(B3),\"\",SUBTOTAL(103,$B$3:B3))","v":1},"Medical Consumables","Clamp.Umbilical 5.8cm sterile disposable","piece"]
[{"$f":"IF(ISBLANK(B4),\"\",SUBTOTAL(103,$B$3:B4))","v":2},"Medical Consumables","Elastic Gauze bandages 10cm x 5m non-sterile","Piece"]
[{"$f":"IF(ISBLANK(B5),\"\",SUBTOTAL(103,$B$3:B5))","v":3},"Medical Consumables","Elastic Gauze bandages 5cm x 5m non-sterile","Piece"]
[{"$f":"IF(ISBLANK(B6),\"\",SUBTOTAL(103,$B$3:B6))","v":4},"Medical Consumables","Gauze pads, N17, 10X10 cm, 4 ply, sterile","piece"]
[{"$f":"IF(ISBLANK(B7),\"\",SUBTOTAL(103,$B$3:B7))","v":5},"Medical Consumables","gloves, examination, latex, size large , powder free, non-sterile, disposable ,box 100 pcs.","Box"]
[{"$f":"IF(ISBLANK(B8),\"\",SUBTOTAL(103,$B$3:B8))","v":6},"Medical Consumables","gloves, examination, latex, size medium , powder free, non-sterile, disposable ,box 100 pcs.","Box"]
[{"$f":"IF(ISBLANK(B9),\"\",SUBTOTAL(103,$B$3:B9))","v":7},"Medical Consumables","gloves, examination, latex, size X large, powder free, non-sterile, disposable ,box 100 pcs.","Box"]
[{"$f":"IF(ISBLANK(B10),\"\",SUBTOTAL(103,$B$3:B10))","v":8},"Medical Consumables","I.v. placement unit 20G catheter (pink) + injection port and wings","piece"]
[{"$f":"IF(ISBLANK(B11),\"\",SUBTOTAL(103,$B$3:B11))","v":9},"Medical Consumables","I.v. placement unit 22G catheter (blue) + injection port and wings","piece"]
[{"$f":"IF(ISBLANK(B12),\"\",SUBTOTAL(103,$B$3:B12))","v":10},"Medical Consumables","I.v. placement unit 24G catheter (Yellow) + injection port and wings","piece"]
[{"$f":"IF(ISBLANK(B13),\"\",SUBTOTAL(103,$B$3:B13))","v":11},"Medical Consumables","Iv infusion Set: -20 drops/ml -One (1) Y-injection site 6\" from distal end","Piece"]
[{"$f":"IF(ISBLANK(B14),\"\",SUBTOTAL(103,$B$3:B14))","v":12},"Medical Consumables","Mask, oxygen, simple, with tubing, Pediatric","piece"]
[{"$f":"IF(ISBLANK(B15),\"\",SUBTOTAL(103,$B$3:B15))","v":13},"Medical Consumables","Non-sterile Guaze 10 cm x 10 cm,100 % Cotton","KG"]
[{"$f":"IF(ISBLANK(B16),\"\",SUBTOTAL(103,$B$3:B16))","v":14},"Medical Consumables","Nylon Glove, Examination for single use,box 100 pcs.","Box"]
[{"$f":"IF(ISBLANK(B17),\"\",SUBTOTAL(103,$B$3:B17))","v":15},"Medical Consumables","plaster mefix  5 cm*10m","piece"]
[{"$f":"IF(ISBLANK(B18),\"\",SUBTOTAL(103,$B$3:B18))","v":16},"Medical Consumables","plaster mefix 10 cm*10m","piece"]
[{"$f":"IF(ISBLANK(B19),\"\",SUBTOTAL(103,$B$3:B19))","v":17},"Medical Consumables","Plaster, adhesive, Zinc oxide  5cm*5M","piece"]
[{"$f":"IF(ISBLANK(B20),\"\",SUBTOTAL(103,$B$3:B20))","v":18},"Medical Consumables","povidone iodine 10% topical solution 1000 ml bottle","Bottle"]
[{"$f":"IF(ISBLANK(B21),\"\",SUBTOTAL(103,$B$3:B21))","v":19},"Medical Consumables","Surgical linens, waterproof, sterile ( 100 cm * 100 cm )","piece"]
[{"$f":"IF(ISBLANK(B22),\"\",SUBTOTAL(103,$B$3:B22))","v":20},"Medical Consumables","suture polyglycolic Acid  1    round/ Absorbable  ","piece"]
[{"$f":"IF(ISBLANK(B23),\"\",SUBTOTAL(103,$B$3:B23))","v":21},"Medical Consumables","suture polyglycolic Acid  2/0    round/ Absorbable  ","piece"]
[{"$f":"IF(ISBLANK(B24),\"\",SUBTOTAL(103,$B$3:B24))","v":22},"Medical Consumables","Syringe, hypodermic, Luer, 2-part, 10 ml, sterile, disposable with needle","piece"]
[{"$f":"IF(ISBLANK(B25),\"\",SUBTOTAL(103,$B$3:B25))","v":23},"Medical Consumables","Syringe, hypodermic, Luer, 2-part, 3 ml, sterile, disposable  with needle","piece"]
[{"$f":"IF(ISBLANK(B26),\"\",SUBTOTAL(103,$B$3:B26))","v":24},"Medical Consumables","Syringe, hypodermic, Luer, 2-part, 5 ml, sterile, disposable with needle","piece"]
[{"$f":"IF(ISBLANK(B27),\"\",SUBTOTAL(103,$B$3:B27))","v":25},"Medical Consumables","Syringe, insulin, sterile, 100 IU/ml, with 27G needle","piece"]
[{"$f":"IF(ISBLANK(B28),\"\",SUBTOTAL(103,$B$3:B28))","v":26},"Medical Consumables","Urine clollection bag, infants ","piece"]
[{"$f":"IF(ISBLANK(B29),\"\",SUBTOTAL(103,$B$3:B29))","v":27},"Medical Consumables","Urine collecting bag 2000ml, sterile, with non-return valve and tap","piece"]
[{"$f":"IF(ISBLANK(B30),\"\",SUBTOTAL(103,$B$3:B30))","v":28},"Medical Consumables","Ultrasound gel 1000 ml , bottle ","Bottle"]
[{"$f":"IF(ISBLANK(B31),\"\",SUBTOTAL(103,$B$3:B31))","v":29},"Medical Consumables","Pediatric nebulizer mask","Piece"]
[{"$f":"IF(ISBLANK(B32),\"\",SUBTOTAL(103,$B$3:B32))","v":30},"Medical Consumables","Activated Glutaraldehyde (Cidex) 2.45% bottle of 5 liters","Piece"]
[{"$f":"IF(ISBLANK(B33),\"\",SUBTOTAL(103,$B$3:B33))","v":31},"Medical Consumables","povidone iodine 10% topical solution 1000 ml bottle","Bottle"]
[{"$f":"IF(ISBLANK(B34),\"\",SUBTOTAL(103,$B$3:B34))","v":32},"Medical Consumables","Wooden Tongue Depressors ,box 100 pcs.","Box"]
["Supplier Name | اسم المزود"]
["Supplier & Signature | توقيع وختم المزود"]